bitfinex-derivatives/quotes_SOLF0:USTF0_20251023
["timestamp","ask_amount","ask_price","bid_price","bid_amount"]
[1761190224909,2.83,183.24,183.18,5.02780398]
[1761190225109,2.83,183.24,183.19,5.02780398]
[1761190225309,2.83,183.24,183.2,5.02780398]
[1761190225508,2.83,183.24,183.17,2.75]
[1761190225713,2.83,183.24,183.18,5.02764382]
[1761190225913,2.83,183.24,183.19,5.02764382]
[1761190226114,2.83,183.24,183.2,5.02764382]
[1761190226313,2.83,183.24,183.17,2.75]
[1761190226515,2.83,183.24,183.18,5.02748378]
[1761190226710,2.83,183.24,183.19,5.02748378]
[1761190226914,2.83,183.24,183.2,5.02748378]
[1761190227113,2.83,183.24,183.14,2.06440875]
[1761190227114,7.94055878,183.24,183.14,2.06440875]
[1761190227418,2.67,183.23,183.16,2.75]
[1761190227616,2.67,183.23,183.17,5.02920735]
[1761190227814,2.67,183.23,183.18,5.02920735]
[1761190228020,2.67,183.23,183.14,4.81440875]
[1761190228220,2.67,183.22,183.15,5.02946756]
[1761190228418,2.67,183.22,183.16,5.02946756]
[1761190228720,2.67,183.21,183.11,4.96440875]
[1761190228917,2.67,183.19,183.12,7.93110303]
[1761190229118,2.67,183.19,183.13,5.03110303]
[1761190229315,2.67,183.19,183.14,5.03110303]
[1761190229519,2.67,183.19,183.15,5.03110303]
[1761190229820,2.67,183.19,183.12,2.9]
[1761190230022,2.67,183.19,183.13,5.02893863]
[1761190230320,2.67,183.19,183.14,5.02893863]
[1761190230520,45.28,183.19,183.16,2.9]
[1761190230716,2.67,183.23,183.17,5.02544021]
[1761190230922,2.67,183.21,183.18,7.92448142]
[1761190231122,32.18,183.22,183.18,2.9]
[1761190231420,34.85,183.22,183.18,2.9]
[1761190231621,47.97,183.22,183.18,2.9]
[1761190232020,2.67,183.21,183.18,2.9]
[1761190233823,2.67,183.21,183.11,2.9]
[1761190234118,2.67,183.21,183.1,2.06440875]
[1761190234119,2.67,183.21,183.12,7.92381298]
[1761190234421,2.67,183.21,183.13,5.02381298]
[1761190234624,2.67,183.21,183.14,5.02381298]
[1761190234820,2.67,183.21,183.12,2.9]
[1761190235020,2.67,183.21,183.13,5.03029183]
[1761190235321,2.67,183.21,183.14,5.03029183]
[1761190235521,2.67,183.21,183.12,2.9]
[1761190235716,2.67,183.21,183.13,7.92887321]
[1761190235923,2.67,183.21,183.14,5.02887321]
[1761190236223,2.06440875,183.22,183.1,2.9]
[1761190236224,2.67,183.19,183.1,2.9]
[1761190236418,2.67,183.18,183.11,5.02791522]
[1761190236624,2.67,183.18,183.12,5.02791522]
[1761190236819,2.67,183.16,183.1,2.9]
[1761190237019,2.67,183.16,183.12,2.9]
[1761190240528,45.3,183.18,183.12,2.9]
[1761190240824,45.3,183.18,183.14,2.9]
[1761190240825,47.97,183.18,183.14,2.9]
[1761190241525,2.67,183.17,183.07,2.9]
[1761190241725,2.67,183.17,183.11,2.9]
[1761190241928,2.67,183.17,183.12,7.91978488]
[1761190242125,2.67,183.17,183.13,2.9]
[1761190242523,2.67,183.16,183.13,2.9]
[1761190242829,2.67,183.16,183.1,4.22280488]
[1761190243017,2.67,183.16,183.12,2.9]
[1761190243624,2.67,183.16,183.09,2.9]
[1761190243824,2.67,183.14,183.1,5.01796147]
[1761190244130,2.67,183.14,183.09,2.9]
[1761190245425,2.67,183.14,183.11,2.9]
[1761190247024,2.67,183.14,183.02,5.00979661]
[1761190247223,2.67,183.14,183.08,2.9]
[1761190248428,47.95,183.14,183.08,2.9]
[1761190250628,2.67,183.13,183.08,2.9]
[1761190252133,2.67,183.12,183.08,2.9]
[1761190253138,3.99280488,183.13,183.08,2.9]
[1761190253927,2.67,183.12,183.05,2.9]
[1761190254132,2.67,183.12,183.04,1.32280488]
[1761190254133,2.67,183.1,183.07,2.9]
[1761190257538,3.99280488,183.11,183.07,2.9]
[1761190257939,1.32280488,183.11,183.07,2.9]
[1761190258140,2.67,183.1,183.07,2.9]
[1761190260342,3.99280488,183.1,183.07,2.9]
[1761190261749,2.92,183.09,183.04,2.7]
[1761190261944,4.24280488,183.08,183.02,2.7]
[1761190262244,2.92,183.07,183.04,2.7]
[1761190263849,1.32280488,183.08,183.04,2.7]
[1761190264239,2.92,183.15,183.06,2.7]
[1761190264442,4.24280488,183.15,183.08,2.7]
[1761190265844,2.92,183.14,183.08,2.7]
[1761190266045,2.92,183.12,183.08,2.7]
[1761190266340,2.92,183.1,183.06,2.7]
[1761190266548,2.92,183.1,183.07,7.72187114]
[1761190266849,4.24280488,183.09,183.04,2.7]
[1761190267150,1.32280488,183.11,183.06,2.7]
[1761190267338,4.24280488,183.11,183.08,2.7]
[1761190267950,1.32280488,183.11,183.08,2.7]
[1761190268948,2.92,183.1,183.05,2.7]
[1761190269257,2.92,183.1,183.06,7.72397636]
[1761190269455,2.92,183.1,183.07,5.02397636]
[1761190269649,2.92,183.1,183.03,2.7]
[1761190269849,2.92,183.1,183.05,2.7]
[1761190270051,2.92,183.1,183.07,2.7]
[1761190270452,1.32280488,183.11,183.07,2.7]
[1761190270654,1.32280488,183.11,183.08,7.72584592]
[1761190270854,1.32280488,183.11,183.08,2.7]
[1761190271054,4.24280488,183.11,183.08,2.7]
[1761190271455,45.3,183.13,183.09,5.02649845]
[1761190271456,1.32280488,183.13,183.09,5.02649845]
[1761190271659,4.24280488,183.13,183.1,2.7]
[1761190276262,4.24280488,183.13,183.05,2.7]
[1761190276263,2.92,183.12,183.05,2.7]
[1761190276457,2.92,183.12,183.07,2.7]
[1761190276654,2.92,183.12,183.08,7.73229219]
[1761190276858,2.92,183.12,183.09,5.03229219]
[1761190277060,4.24280488,183.11,183.08,2.7]
[1761190277262,4.24280488,183.11,183.09,5.03413885]
[1761190277463,4.24280488,183.11,183.08,2.7]
[1761190277762,4.24280488,183.11,183.09,5.03386594]
[1761190277962,4.24280488,183.11,183.08,2.7]
[1761190278164,4.24280488,183.11,183.09,5.03359016]
[1761190278364,4.24280488,183.11,183.08,2.7]
[1761190278560,4.24280488,183.11,183.09,5.03589512]
[1761190278761,4.24280488,183.11,183.08,2.7]
[1761190278961,4.24280488,183.11,183.09,5.0357737]
[1761190279264,4.24280488,183.11,183.1,5.0357737]
[1761190280165,1.32280488,183.11,183.1,5.0357737]
[1761190280365,4.24280488,183.14,183.11,2.7]
[1761190280566,49.52280488,183.14,183.11,2.7]
[1761190280867,46.60280488,183.14,183.11,2.7]
[1761190281066,2.92,183.13,183.11,2.7]
[1761190281767,2.92,183.13,183.07,2.7]
[1761190281966,2.92,183.13,183.09,2.7]
[1761190282168,2.92,183.13,183.1,5.03846704]
[1761190282366,2.92,183.13,183.11,5.03846704]
[1761190282569,2.92,183.13,183.09,2.7]
[1761190282768,2.92,183.13,183.1,5.03856663]
[1761190282968,2.92,183.13,183.11,5.03856663]
[1761190283169,1.32280488,183.12,183.1,2.7]
[1761190283365,1.32280488,183.12,183.11,5.03910948]
[1761190283564,1.32280488,183.12,183.11,7.73910948]
[1761190283963,1.32280488,183.12,183.11,5.03910948]
[1761190284771,4.24280488,183.13,183.11,7.97910948]
[1761190284964,4.24280488,183.13,183.12,5.03910948]
[1761190289072,49.52280488,183.13,183.12,5.03910948]
[1761190292281,46.60280488,183.13,183.05,7.84979661]
[1761190292472,1.32280488,183.09,183.06,2.84]
[1761190292667,1.32280488,183.11,183.06,2.84]
[1761190293072,4.22280488,183.11,183.06,2.84]
[1761190294881,2.9,183.1,183.06,2.84]
[1761190296483,1.32280488,183.09,183.06,2.84]
[1761190296683,2.9,183.1,183.06,2.84]
[1761190304288,2.9,183.1,183.07,4.95663473]
[1761190304591,2.9,183.1,183.08,4.95663473]
[1761190304792,2.9,183.1,183.09,4.95663473]
[1761190305193,2.9,183.1,183.04,2.84]
[1761190305392,4.96802867,183.07,183.04,2.84]
[1761190305589,50.24802867,183.07,183.04,2.84]
[1761190305793,2.9,183.06,183.04,2.84]
[1761190305993,45.28,183.08,183.04,2.84]
[1761190307489,45.2,183.08,183.04,2.84]
[1761190307887,48.1,183.08,183.04,2.84]
[1761190308900,2.06802867,183.1,183.04,2.84]
[1761190309100,48.18,183.09,183.04,2.84]
[1761190310497,2.9,183.08,183.04,2.84]
[1761190312396,2.9,183.08,183.01,2.84]
[1761190313298,2.06802867,183.07,183.01,2.84]
[1761190313799,4.96802867,183.07,183.01,2.84]
[1761190316594,2.9,183.06,183.01,2.84]
[1761190320095,2.06802867,183.07,183.01,2.84]
[1761190320302,45.28,183.09,183.01,2.84]
[1761190320502,48.0,183.09,183.01,2.84]
[1761190321405,2.72,183.09,183.01,2.84]
[1761190324506,2.72,183.09,183.02,2.67]
[1761190325893,2.06802867,183.1,183.02,2.67]
[1761190326096,2.06802867,183.13,183.02,2.67]
[1761190326302,2.06802867,183.13,183.03,2.67]
[1761190326604,4.78802867,183.13,183.03,2.67]
[1761190326805,4.78802867,183.13,183.05,2.67]
[1761190327005,4.78802867,183.13,183.07,2.67]
[1761190327304,2.72,183.12,183.08,7.74538686]
[1761190327505,2.72,183.12,183.09,5.07538686]
[1761190327698,2.72,183.12,183.1,5.07538686]
[1761190327897,2.72,183.12,183.11,5.07538686]
[1761190328408,2.06802867,183.16,183.12,2.67]
[1761190328602,2.06802867,183.16,183.14,2.67]
[1761190328906,2.72,183.17,183.14,2.67]
[1761190329817,5.11057429,183.21,183.16,2.67]
[1761190330103,2.72,183.22,183.18,2.67]
[1761190330302,7.17860296,183.24,183.2,2.67]
[1761190330504,4.78802867,183.24,183.21,7.03585106]
[1761190330705,4.78802867,183.24,183.22,4.36585106]
[1761190331006,4.78802867,183.24,183.23,4.36585106]
[1761190331907,4.78802867,183.24,183.21,2.67]
[1761190332406,4.78802867,183.24,183.22,4.35991139]
[1761190332607,4.78802867,183.24,183.23,4.35967479]
[1761190332801,4.78802867,183.24,183.21,2.67]
[1761190333400,2.72,183.24,183.21,2.67]
[1761190333608,2.06802867,183.27,183.21,2.67]
[1761190334006,4.78802867,183.27,183.21,2.67]
[1761190335417,4.78802867,183.27,183.15,4.9131]
[1761190335418,2.06802867,183.27,183.23,2.67]
[1761190335616,2.06802867,183.27,183.25,2.67]
[1761190335914,4.78802867,183.27,183.26,4.35870955]
[1761190336108,2.72,183.27,183.26,4.35870955]
[1761190336416,2.72,183.27,183.13,2.67]
[1761190336417,2.72,183.26,183.13,2.67]
[1761190336612,2.06802867,183.2,183.15,2.67]
[1761190336810,4.78802867,183.2,183.17,2.67]
[1761190337112,2.72,183.2,183.17,2.67]
[1761190337307,2.06802867,183.21,183.17,2.67]
[1761190342020,2.06802867,183.22,183.17,2.67]
[1761190342218,4.78802867,183.22,183.17,2.67]
[1761190342917,2.72,183.21,183.17,2.67]
[1761190344624,2.06802867,183.25,183.17,2.67]
[1761190344818,2.94,183.27,183.19,2.79]
[1761190345523,2.94,183.27,183.2,5.02704404]
[1761190345728,2.94,183.3,183.21,2.79]
[1761190353730,2.94,183.3,183.23,2.82]
[1761190355930,2.94,183.3,183.2,2.82]
[1761190356730,1.32121178,183.27,183.2,2.82]
[1761190357029,4.22121178,183.27,183.2,2.82]
[1761190357931,2.9,183.26,183.2,2.82]
[1761190360931,2.9,183.24,183.17,2.82]
[1761190361132,2.9,183.24,183.19,2.82]
[1761190361333,2.9,183.24,183.19,4.14121178]
[1761190361635,2.9,183.24,183.2,2.82]
[1761190362532,2.9,183.24,183.21,5.02536806]
[1761190362832,2.9,183.24,183.21,2.82]
[1761190364135,2.9,183.24,183.22,5.02987634]
[1761190364438,2.9,183.24,183.21,2.82]
[1761190364734,2.9,183.24,183.22,5.03025562]
[1761190364930,2.9,183.24,183.21,2.82]
[1761190365137,2.9,183.24,183.2,2.82]
[1761190365336,2.9,183.24,183.21,5.03144418]
[1761190365536,2.9,183.24,183.2,2.82]
[1761190365839,2.9,183.24,183.21,5.03144418]
[1761190366029,2.9,183.24,183.2,2.82]
[1761190366228,4.22121178,183.23,183.17,2.82]
[1761190366435,2.9,183.22,183.19,2.82]
[1761190366636,2.9,183.22,183.2,5.03270654]
[1761190366938,2.9,183.22,183.19,2.82]
[1761190367138,2.9,183.22,183.2,5.03525443]
[1761190367340,2.9,183.22,183.19,2.82]
[1761190367538,2.9,183.22,183.2,5.03897745]
[1761190367739,2.9,183.22,183.21,5.03897745]
[1761190374940,1.32121178,183.27,183.21,5.03897745]
[1761190374941,2.9,183.26,183.21,5.03897745]
[1761190375141,2.9,183.26,183.22,5.03897745]
[1761190375435,2.9,183.26,183.23,5.03897745]
[1761190375640,2.9,183.26,183.24,5.03897745]
[1761190375841,2.9,183.26,183.2,2.82]
[1761190376037,2.9,183.26,183.21,7.88901229]
[1761190376242,2.9,183.26,183.22,5.06901229]
[1761190376447,2.9,183.26,183.23,5.06901229]
[1761190376640,2.9,183.26,183.24,5.06901229]
[1761190376842,2.9,183.26,183.21,2.82]
[1761190377041,2.9,183.26,183.22,5.06937922]
[1761190377244,2.9,183.26,183.23,5.06937922]
[1761190377441,2.9,183.26,183.24,5.06937922]
[1761190377641,2.9,183.26,183.21,2.82]
[1761190377842,2.9,183.26,183.22,5.06958999]
[1761190378043,2.9,183.26,183.23,5.06958999]
[1761190378242,2.9,183.26,183.24,5.06958999]
[1761190378540,2.9,183.26,183.21,2.82]
[1761190378735,2.9,183.26,183.22,5.06753288]
[1761190378937,2.92,183.29,183.24,2.79]
[1761190379138,2.92,183.29,183.25,5.06753288]
[1761190379339,2.92,183.29,183.24,2.79]
[1761190379641,2.92,183.29,183.25,5.06653745]
[1761190379840,2.92,183.29,183.24,2.79]
[1761190380040,2.92,183.29,183.25,5.06653296]
[1761190380237,2.92,183.27,183.21,2.79]
[1761190380442,2.92,183.27,183.22,5.06677198]
[1761190380638,2.92,183.25,183.23,5.06677198]
[1761190380847,2.92,183.25,183.24,5.06677198]
[1761190382952,2.92,183.25,183.19,4.11121178]
[1761190383142,2.92,183.25,183.2,7.85979747]
[1761190383347,2.92,183.25,183.21,5.06979747]
[1761190383651,2.92,183.25,183.22,5.06979747]
[1761190383947,2.92,183.25,183.23,5.06979747]
[1761190384155,2.92,183.25,183.2,2.79]
[1761190384454,2.92,183.25,183.21,5.07111509]
[1761190384648,2.92,183.25,183.22,5.07111509]
[1761190384851,2.92,183.25,183.23,5.07111509]
[1761190385056,2.92,183.25,183.21,1.32121178]
[1761190385247,2.92,183.25,183.22,5.07156866]
[1761190385448,2.92,183.25,183.23,5.07156866]
[1761190385748,2.92,183.25,183.21,4.11121178]
[1761190385950,2.92,183.25,183.22,5.07121033]
[1761190386150,2.92,183.25,183.23,5.07121033]
[1761190386353,2.92,183.25,183.22,2.79]
[1761190386354,2.92,183.25,183.24,5.07121033]
[1761190387153,5.10037393,183.29,183.24,5.07121033]
[1761190387358,2.92,183.28,183.25,5.07121033]
[1761190387561,2.92,183.28,183.24,2.79]
[1761190387858,2.92,183.28,183.25,5.06971054]
[1761190388157,2.92,183.28,183.26,5.07040408]
[1761190388356,2.92,183.28,183.24,2.79]
[1761190388561,2.92,183.28,183.25,5.07040408]
[1761190388752,2.92,183.28,183.26,5.07040408]
[1761190388953,2.92,183.28,183.24,2.79]
[1761190389259,2.92,183.28,183.25,5.07040041]
[1761190389460,2.92,183.28,183.26,5.07040041]
[1761190389657,2.92,183.28,183.24,2.79]
[1761190389856,2.92,183.28,183.25,7.86141295]
[1761190390061,2.92,183.28,183.26,5.07141295]
[1761190390258,2.92,183.28,183.25,2.79]
[1761190390458,2.92,183.28,183.26,5.07104022]
[1761190390659,2.92,183.28,183.25,2.79]
[1761190390862,5.10037393,183.3,183.27,2.79]
[1761190391063,2.92,183.31,183.28,7.85730765]
[1761190391260,2.92,183.32,183.28,2.79]
[1761190393367,2.92,183.32,183.29,5.06544867]
[1761190393661,2.92,183.32,183.3,5.06544867]
[1761190393866,2.92,183.32,183.28,2.79]
[1761190394067,2.92,183.32,183.29,7.85443518]
[1761190394361,2.92,183.32,183.3,5.06443518]
[1761190394558,2.92,183.32,183.29,2.79]
[1761190394760,2.92,183.31,183.23,2.79]
[1761190394963,2.92,183.31,183.24,5.06445263]
[1761190395163,2.92,183.31,183.25,5.06445263]
[1761190395466,2.92,183.31,183.23,4.11121178]
[1761190395467,2.92,183.29,183.26,5.06445263]
[1761190395667,2.92,183.29,183.23,2.79]
[1761190395967,2.92,183.27,183.2,1.32121178]
[1761190396162,2.92,183.27,183.21,5.06825395]
[1761190396368,2.92,183.27,183.22,5.06825395]
[1761190396562,2.92,183.27,183.23,5.06825395]
[1761190396768,2.92,183.27,183.2,1.32121178]
[1761190397069,5.10037393,183.27,183.21,5.07059917]
[1761190397366,2.92,183.26,183.22,5.07059917]
[1761190397570,2.92,183.26,183.23,5.07059917]
[1761190397865,2.92,183.26,183.2,1.32121178]
[1761190398068,2.92,183.26,183.21,7.86166781]
[1761190398268,2.92,183.26,183.22,5.07166781]
[1761190398567,2.92,183.26,183.23,5.07166781]
[1761190398767,2.92,183.26,183.21,2.79]
[1761190398970,2.92,183.26,183.22,5.07186205]
[1761190399170,2.92,183.26,183.23,5.07186205]
[1761190399368,2.92,183.26,183.24,5.07105173]
[1761190399663,2.92,183.26,183.2,1.32121178]
[1761190399973,2.92,183.26,183.21,5.07165957]
[1761190400175,2.92,183.26,183.22,5.07165957]
[1761190400367,2.92,183.26,183.23,5.07165957]
[1761190400564,2.92,183.26,183.2,1.32121178]
[1761190400766,2.92,183.26,183.21,5.07258101]
[1761190401065,2.92,183.26,183.22,5.07258101]
[1761190401269,2.92,183.26,183.23,5.07258101]
[1761190401567,2.92,183.26,183.2,1.32121178]
[1761190401768,2.92,183.26,183.21,5.07218917]
[1761190402068,2.92,183.26,183.22,5.07218917]
[1761190402375,2.92,183.26,183.23,5.07218917]
[1761190402568,2.92,183.26,183.2,1.32121178]
[1761190402770,2.92,183.26,183.21,5.07198234]
[1761190402970,2.92,183.26,183.22,5.07198234]
[1761190403274,2.92,183.26,183.23,5.07198234]
[1761190403469,2.92,183.26,183.2,1.32121178]
[1761190403774,2.92,183.26,183.21,7.92158644]
[1761190403969,2.92,183.26,183.22,5.07158644]
[1761190404268,2.92,183.26,183.23,5.07158644]
[1761190404469,2.92,183.26,183.24,5.07120161]
[1761190404669,2.92,183.26,183.22,2.85]
[1761190404869,2.92,183.26,183.23,5.07102482]
[1761190405070,2.92,183.26,183.24,5.07102482]
[1761190405269,2.92,183.26,183.22,2.85]
[1761190405469,2.92,183.26,183.23,5.07138071]
[1761190405673,2.92,183.26,183.2,1.32121178]
[1761190405869,2.92,183.26,183.21,7.9218636]
[1761190406076,2.92,183.26,183.22,5.0718636]
[1761190406277,2.92,183.26,183.23,5.0718636]
[1761190406473,2.92,183.26,183.24,5.0718636]
[1761190406674,2.92,183.26,183.21,2.85]
[1761190406875,2.92,183.26,183.22,5.0713535]
[1761190407074,2.92,183.26,183.23,5.0713535]
[1761190407377,2.92,183.26,183.24,5.0713535]
[1761190407578,2.92,183.26,183.21,2.85]
[1761190407770,2.92,183.26,183.22,5.07148944]
[1761190407972,2.92,183.26,183.23,5.07148944]
[1761190408178,2.92,183.26,183.21,2.85]
[1761190408380,2.92,183.26,183.22,5.06891143]
[1761190408579,2.92,183.26,183.23,5.06891143]
[1761190408785,2.92,183.26,183.21,2.85]
[1761190408975,2.92,183.26,183.22,5.06835162]
[1761190409271,2.92,183.26,183.23,5.06835162]
[1761190409467,2.92,183.26,183.21,2.85]
[1761190409666,2.92,183.26,183.22,5.0684047]
[1761190409871,2.92,183.26,183.23,5.0684047]
[1761190410171,2.92,183.26,183.21,2.85]
[1761190410473,2.92,183.26,183.22,5.06835701]
[1761190410674,2.92,183.26,183.23,5.06835701]
[1761190410875,2.92,183.26,183.21,2.85]
[1761190411178,2.92,183.26,183.22,5.06811856]
[1761190411366,2.92,183.26,183.23,5.06811856]
[1761190411671,2.92,183.26,183.21,2.85]
[1761190411870,2.92,183.26,183.22,5.06800046]
[1761190412072,2.92,183.26,183.23,5.06800046]
[1761190412273,2.92,183.26,183.21,2.85]
[1761190412477,2.92,183.26,183.22,5.06794096]
[1761190412775,2.92,183.26,183.23,5.06794096]
[1761190412975,2.92,183.26,183.22,2.93]
[1761190413275,2.92,183.26,183.23,5.06794096]
[1761190413475,2.92,183.26,183.22,2.93]
[1761190413665,2.92,183.26,183.23,5.06787506]
[1761190413866,2.92,183.26,183.22,2.93]
[1761190414065,2.92,183.26,183.23,5.06787624]
[1761190414271,2.92,183.26,183.22,2.93]
[1761190414572,2.92,183.26,183.23,5.0678094]
[1761190414573,2.7,183.25,183.23,5.0678094]
[1761190414779,2.7,183.25,183.2,1.32121178]
[1761190414980,2.7,183.25,183.21,7.99847234]
[1761190415279,2.7,183.25,183.22,7.99847234]
[1761190415476,2.7,183.25,183.23,5.07144043]
[1761190415670,2.7,183.25,183.22,2.93]
[1761190415870,2.7,183.25,183.23,5.07144043]
[1761190416072,2.7,183.25,183.22,2.93]
[1761190416267,2.7,183.25,183.23,5.07148227]
[1761190416477,2.7,183.25,183.22,2.93]
[1761190416680,2.7,183.25,183.23,5.07131781]
[1761190416877,2.7,183.25,183.22,2.93]
[1761190417079,2.7,183.25,183.23,5.07131781]
[1761190417382,2.7,183.25,183.22,2.93]
[1761190417576,2.7,183.25,183.23,5.07120831]
[1761190417877,2.7,183.25,183.22,2.93]
[1761190418075,2.7,183.25,183.23,5.07120688]
[1761190418282,2.7,183.25,183.22,2.93]
[1761190418583,2.7,183.25,183.23,5.07223186]
[1761190418780,2.7,183.25,183.22,2.93]
[1761190419081,2.7,183.25,183.23,5.07223422]
[1761190419281,2.7,183.25,183.22,2.93]
[1761190419583,2.7,183.25,183.23,5.07213048]
[1761190419782,2.7,183.25,183.22,2.93]
[1761190419984,2.7,183.25,183.23,5.07213048]
[1761190420285,2.7,183.25,183.22,2.93]
[1761190420585,2.7,183.25,183.23,5.0717167]
[1761190420885,2.7,183.25,183.22,2.93]
[1761190421082,2.7,183.25,183.23,5.07171527]
[1761190421283,2.7,183.25,183.22,2.93]
[1761190421483,2.7,183.25,183.23,5.07166909]
[1761190421685,2.7,183.25,183.22,2.93]
[1761190421886,2.7,183.25,183.23,5.07166909]
[1761190422085,2.7,183.25,183.22,2.93]
[1761190424798,2.7,183.25,183.16,2.93]
[1761190424991,2.7,183.25,183.18,2.93]
[1761190425192,2.7,183.25,183.19,5.07237755]
[1761190425502,2.7,183.25,183.2,8.00237755]
[1761190425698,2.7,183.25,183.21,5.07237755]
[1761190425898,2.7,183.25,183.22,5.07237755]
[1761190426100,5.10037393,183.25,183.17,2.93]
[1761190426302,2.7,183.24,183.18,5.07310192]
[1761190426599,2.7,183.24,183.19,8.00310192]
[1761190426787,2.7,183.24,183.2,5.07310192]
[1761190426990,2.7,183.24,183.19,2.93]
[1761190427193,2.7,183.24,183.2,5.07293736]
[1761190427399,2.7,183.24,183.19,2.93]
[1761190427597,2.7,183.24,183.2,5.07242831]
[1761190427799,2.7,183.24,183.19,2.93]
[1761190427999,2.7,183.24,183.2,5.07250328]
[1761190428297,2.7,183.24,183.19,2.93]
[1761190428489,2.7,183.24,183.2,5.07200372]
[1761190428691,2.7,183.24,183.16,2.93]
[1761190428891,2.7,183.23,183.17,5.07266332]
[1761190429099,45.22,183.22,183.18,5.07266332]
[1761190429299,2.7,183.21,183.16,2.93]
[1761190429501,2.7,183.21,183.18,2.93]
[1761190430399,2.7,183.21,183.14,2.06456942]
[1761190430696,2.7,183.21,183.16,2.93]
[1761190430893,2.7,183.21,183.18,2.93]
[1761190431999,2.7,183.21,183.15,2.93]
[1761190432198,2.7,183.21,183.17,2.93]
[1761190432400,2.7,183.21,183.18,5.07026647]
[1761190432697,2.7,183.21,183.17,2.93]
[1761190432927,2.7,183.21,183.18,5.06999768]
[1761190433215,2.7,183.21,183.17,2.93]
[1761190434000,2.7,183.21,183.18,5.07026408]
[1761190434190,2.7,183.21,183.17,2.93]
[1761190434391,2.7,183.21,183.18,5.07036399]
[1761190434595,2.7,183.21,183.17,2.93]
[1761190434797,2.7,183.21,183.18,5.07036456]
[1761190434998,2.7,183.21,183.17,2.93]
[1761190435194,2.7,183.21,183.18,8.00005904]
[1761190435397,2.7,183.24,183.18,2.93]
[1761190435600,2.7,183.24,183.2,2.93]
[1761190439108,2.7,183.24,183.21,5.07403497]
[1761190439305,2.91,183.23,183.21,2.75]
[1761190440507,45.22,183.24,183.17,2.06456942]
[1761190440508,45.22,183.24,183.22,7.82419403]
[1761190440710,48.13,183.24,183.22,2.75]
[1761190441016,45.22,183.24,183.22,2.75]
[1761190441312,45.22,183.24,183.23,7.82386848]
[1761190442614,2.91,183.23,183.17,2.75]
[1761190442913,2.91,183.21,183.18,5.07502864]
[1761190443102,2.91,183.21,183.19,5.07502864]
[1761190443305,2.91,183.21,183.17,2.75]
[1761190443501,2.91,183.21,183.18,5.07466077]
[1761190443707,2.91,183.21,183.19,5.07466077]
[1761190444010,2.91,183.21,183.17,2.75]
[1761190444311,2.91,183.21,183.18,5.07517532]
[1761190444614,2.91,183.19,183.13,2.75]
[1761190444813,2.91,183.19,183.14,7.82765032]
[1761190445010,2.91,183.19,183.15,5.07765032]
[1761190445213,2.91,183.19,183.16,5.07765032]
[1761190445515,2.91,183.19,183.14,2.75]
[1761190445712,2.91,183.19,183.15,7.82657212]
[1761190445913,2.91,183.19,183.16,5.07657212]